fUSD/lending_fUSD_20241219
["ID","MTS","AMOUNT","RATE_DAILY","PERIOD"]
[346031722,1734640244526,-500.0,0.00024687,4]
[346031723,1734640244535,-500.0,0.0002469,4]
[346031724,1734640244545,-500.0,0.0002469,4]
[346031725,1734640244557,-336.7426844,0.0002469,4]
[346031726,1734640244567,-500.0,0.0002469,4]
[346031727,1734640244576,-500.0,0.0002469,4]
[346031728,1734640244586,-500.0,0.0002469,4]
[346031729,1734640244595,-500.0,0.0002469,4]
[346031730,1734640244604,-1768.29,0.0002469,4]
[346031731,1734640244613,-500.0,0.0002469,4]
[346031732,1734640244622,-500.0,0.0002469,4]
[346031733,1734640244630,-500.0,0.0002469,4]
[346031734,1734640244640,-500.0,0.0002469,4]
[346031735,1734640244649,-500.0,0.0002469,4]
[346031736,1734640244659,-500.0,0.0002469,4]
[346031737,1734640244668,-200.0,0.000247,2]
[346031738,1734640244677,-15360.59790986,0.00024727,2]
[346031739,1734640244686,-150.0,0.00024733,2]
[346031740,1734640244695,-150.0,0.00024736,2]
[346031741,1734640244705,-150.0,0.00024737,2]
[346031742,1734640244714,-150.0,0.00024742,2]
[346031743,1734640244724,-150.0,0.00024755,2]
[346031744,1734640244733,-5000.0,0.0002478,2]
[346031745,1734640244742,-1387.57417457,0.00024794,2]
[346031746,1734640244752,-432.02656024,0.000248,2]
[346031747,1734640244761,-150.0,0.00024802,2]
[346031748,1734640244770,-150.0,0.00024803,2]
[346031749,1734640244780,-1387.57417454,0.00024806,2]
[346031750,1734640244790,-150.0,0.00024813,2]
[346031751,1734640244802,-15360.59790986,0.00024814,2]
[346031752,1734640244811,-150.0,0.00024817,2]
[346031753,1734640244821,-1387.57417454,0.00024818,2]
[346031754,1734640244831,-500.0,0.00024821,4]
[346031755,1734640244840,-500.0,0.00024821,4]
[346031756,1734640244850,-151.0,0.00024822,2]
[346031757,1734640244859,-3884.0,0.00024822,2]
[346031758,1734640244868,-150.0,0.00024822,2]
[346031759,1734640244877,-13747.0,0.00024822,2]
[346031760,1734640244886,-1168.0,0.00024822,2]
[346031761,1734640244896,-1099.0,0.00024822,2]
[346031762,1734640244906,-150.0,0.00024827,2]
[346031763,1734640244915,-150.0,0.00024827,2]
[346031764,1734640244924,-1387.57417454,0.00024829,2]
[346031765,1734640244934,-150.0,0.00024831,2]
[346031766,1734640244943,-150.0,0.00024832,2]
[346031767,1734640244953,-683.77152383,0.00024839,14]
[346031768,1734640244963,-1387.57417454,0.00024841,2]
[346031769,1734640244973,-150.0,0.00024847,2]
[346031770,1734640244982,-683.77152383,0.00024848,14]
[346031771,1734640244992,-1387.57417454,0.00024853,2]
[346031772,1734640245001,-150.0,0.00024854,2]
[346031773,1734640245011,-910.74950956,0.00024854,14]
[346031774,1734640245020,-683.77152383,0.00024862,14]
[346031775,1734640245029,-683.77152383,0.00024863,14]
[346031776,1734640245039,-1387.57417454,0.00024865,2]
[346031777,1734640245050,-910.74950956,0.00024867,14]
[346031778,1734640245059,-150.0,0.00024867,2]
[346031779,1734640245069,-910.74950956,0.00024871,14]
[346031780,1734640245078,-910.74950956,0.00024875,14]
[346031781,1734640245089,-1387.57417454,0.00024876,2]
[346031782,1734640245099,-150.0,0.00024877,2]
[346031783,1734640245109,-150.0,0.00024878,2]
[346031784,1734640245119,-508.11559632,0.00024879,4]
[346031785,1734640245129,-567.01,0.00024879,4]
[346031786,1734640245138,-505.15695443,0.00024879,4]
[346031787,1734640245147,-500.0,0.00024879,4]
[346031788,1734640245157,-383.97555567,0.00024879,4]
[346031789,1734640245166,-426.82,0.00024879,4]
[346031790,1734640245175,-630.39961821,0.00024879,4]
[346031791,1734640245185,-500.0,0.00024879,4]
[346031792,1734640245194,-500.0,0.00024879,4]
[346031793,1734640245203,-500.0,0.00024879,4]
[346031794,1734640245212,-500.0,0.00024879,4]
[346031795,1734640245222,-500.0,0.00024879,4]
[346031796,1734640245231,-500.0,0.00024879,4]
[346031797,1734640245240,-500.0,0.00024879,4]
[346031798,1734640245249,-500.0,0.00024879,4]
[346031799,1734640245258,-500.0,0.00024879,4]
[346031800,1734640245268,-500.0,0.00024879,4]
[346031801,1734640245277,-500.0,0.00024879,4]
[346031802,1734640245287,-500.0,0.00024879,4]
[346031803,1734640245303,-500.0,0.00024879,4]
[346031804,1734640245312,-500.0,0.00024879,4]
[346031805,1734640245322,-500.0,0.00024879,4]
[346031806,1734640245331,-500.0,0.00024879,4]
[346031807,1734640245341,-500.0,0.00024879,4]
[346031808,1734640245351,-500.0,0.00024879,4]
[346031809,1734640245360,-500.0,0.00024879,4]
[346031810,1734640245372,-500.0,0.00024879,4]
[346031811,1734640245382,-500.0,0.00024879,4]
[346031812,1734640245392,-500.0,0.00024879,4]
[346031813,1734640245402,-500.0,0.00024879,4]
[346031814,1734640245412,-500.0,0.00024879,4]
[346031815,1734640245421,-500.0,0.00024879,4]
[346031816,1734640245431,-600.49,0.00024879,4]
[346031817,1734640245440,-529.80574538,0.00024879,4]
[346031818,1734640245449,-500.0,0.00024879,4]
[346031819,1734640245459,-500.0,0.00024879,4]
[346031820,1734640245468,-500.0,0.00024879,4]
[346031821,1734640245477,-500.0,0.00024879,4]
[346031822,1734640245487,-500.0,0.00024879,4]
[346031823,1734640245497,-500.0,0.00024879,4]
[346031824,1734640245507,-500.0,0.00024879,4]
[346031825,1734640245517,-500.0,0.00024879,4]
[346031826,1734640245526,-500.0,0.00024879,2]
[346031827,1734640245535,-500.0,0.00024879,4]
[346031828,1734640245547,-500.0,0.00024879,4]
[346031829,1734640245558,-500.0,0.00024879,4]
[346031830,1734640245568,-509.43547417,0.00024879,4]
[346031831,1734640245578,-500.0,0.00024879,4]
[346031832,1734640245587,-500.0,0.00024879,4]
[346031834,1734640245597,-500.0,0.00024879,4]
[346031835,1734640245607,-500.0,0.00024879,4]
[346031836,1734640245615,-188.15738416,0.00024879,4]
[346031837,1734640245625,-500.0,0.00024879,4]
[346031838,1734640245635,-500.0,0.00024879,4]
[346031839,1734640245644,-500.0,0.00024879,4]
[346031841,1734640245653,-501.97913691,0.00024879,4]
[346031843,1734640245662,-500.22745999,0.00024879,4]
[346031845,1734640245671,-452.0910056,0.00024879,4]
[346031846,1734640245680,-500.0,0.00024879,4]
[346031847,1734640245690,-500.0,0.00024879,4]
[346031848,1734640245699,-502.91890638,0.00024879,4]
[346031850,1734640245707,-500.0,0.00024879,4]
[346031852,1734640245717,-500.0,0.00024879,4]
[346031853,1734640245726,-604.9514803,0.00024879,4]
[346031855,1734640245735,-500.0,0.00024879,4]
[346031856,1734640245745,-200.41,0.00024879,4]
[346031857,1734640245754,-500.0,0.00024879,4]
[346031858,1734640245764,-500.0,0.00024879,4]
[346031859,1734640245773,-310.4396817,0.00024879,4]
[346031861,1734640245782,-500.0,0.00024879,4]
[346031862,1734640245792,-500.0,0.00024879,4]
[346031863,1734640245803,-500.0,0.00024879,4]
[346031864,1734640245812,-500.0,0.00024879,4]
[346031865,1734640245822,-500.0,0.00024879,4]
[346031867,1734640245831,-500.0,0.00024879,4]
[346031869,1734640245841,-500.0,0.00024879,4]
[346031871,1734640245850,-500.0,0.00024879,4]
[346031872,1734640245859,-500.0,0.00024879,4]
[346031874,1734640245868,-500.0,0.00024879,4]
[346031876,1734640245878,-500.0,0.00024879,4]
[346031878,1734640245887,-150.0,0.00024879,2]
[346031880,1734640245896,-537.82,0.00024879,4]
[346031882,1734640245905,-500.0,0.00024879,4]
[346031884,1734640245915,-500.0,0.00024879,4]
[346031886,1734640245925,-500.0,0.00024879,4]
[346031888,1734640245934,-500.0,0.00024879,4]
[346031889,1734640245943,-500.0,0.00024879,4]
[346031891,1734640245952,-500.0,0.00024879,4]
[346031893,1734640245962,-500.0,0.00024879,4]
[346031895,1734640245971,-500.0,0.00024879,4]
[346031897,1734640245980,-500.0,0.00024879,2]
[346031899,1734640245990,-500.0,0.00024879,4]
[346031900,1734640245998,-500.0,0.00024879,4]
[346031902,1734640246008,-602.15,0.00024879,4]
[346031903,1734640246018,-500.0,0.00024879,4]
[346031904,1734640246027,-838.38,0.00024879,4]
[346031905,1734640246036,-500.0,0.00024879,4]
[346031906,1734640246045,-500.0,0.00024879,4]
[346031907,1734640246059,-500.0,0.00024879,4]
[346031908,1734640246069,-500.0,0.00024879,4]
[346031909,1734640246078,-500.0,0.00024879,4]
[346031910,1734640246087,-500.0,0.00024879,4]
[346031911,1734640246097,-500.0,0.00024879,4]
[346031912,1734640246107,-500.0,0.00024879,4]
[346031913,1734640246116,-500.0,0.00024879,4]
[346031914,1734640246126,-500.0,0.00024879,4]
[346031915,1734640246135,-697.13,0.00024879,4]
[346031916,1734640246144,-500.0,0.00024879,4]
[346031917,1734640246154,-500.0,0.00024879,4]
[346031918,1734640246163,-2302.52,0.00024879,4]
[346031919,1734640246172,-500.0,0.00024879,4]
[346031920,1734640246182,-500.0,0.00024879,4]
[346031921,1734640246192,-500.0,0.00024879,4]
[346031922,1734640246201,-500.0,0.00024879,4]
[346031923,1734640246211,-500.0,0.00024879,4]
[346031924,1734640246221,-500.0,0.00024879,4]
[346031925,1734640246230,-500.0,0.00024879,4]
[346031926,1734640246240,-500.0,0.00024879,4]
[346031927,1734640246249,-500.0,0.00024879,4]
[346031928,1734640246258,-702.88,0.00024879,4]
[346031929,1734640246268,-500.0,0.00024879,4]
[346031930,1734640246278,-770.94,0.00024879,4]
[346031931,1734640246287,-510.86,0.00024879,4]
[346031932,1734640246297,-500.0,0.00024879,4]
[346031933,1734640246311,-500.0,0.00024879,4]
[346031935,1734640246321,-2003.74,0.00024879,4]
[346031936,1734640246330,-500.0,0.00024879,4]
[346031937,1734640246338,-500.0,0.00024879,4]
[346031938,1734640246349,-500.0,0.00024879,4]
[346031939,1734640246514,-500.0,0.00024879,4]
[346031940,1734640246525,-500.0,0.00024879,4]
[346031941,1734640246535,-570.56,0.00024879,4]
[346031942,1734640246545,-506.76465119,0.00024879,4]
[346031943,1734640246557,-500.0,0.00024879,4]
[346031945,1734640246567,-500.0,0.00024879,4]
[346031946,1734640246576,-205626.85220947,0.0002488,3]
[346031947,1734640246590,-324.27087024,0.0002488,3]
[346031948,1734640246606,-1726.66494,0.0002488,3]
[346031949,1734640246732,-500.0,0.00024273,4]
[346031950,1734640246742,-500.0,0.00024547,4]
[346031951,1734640246752,-500.0,0.00024547,4]
[346031952,1734640246761,-150.0,0.00024752,2]
[346031953,1734640246771,-258.66055489,0.00024821,4]
[346031954,1734640246780,-473.8947976,0.00024821,4]
[346031955,1734640246791,-26.1052024,0.00024821,4]
[346031956,1734640246803,-209.05,0.00024821,4]
[346031957,1734640246813,-150.0,0.00024826,2]
[346031958,1734640246824,-150.0,0.00024877,2]
[346031959,1734640246833,-500.0,0.00024879,4]
[346031960,1734640246842,-4191.60141529,0.0002488,3]
[346031961,1734640246854,-1066.19186864,0.0002488,3]
[346031962,1734640246873,-150.0,0.00024753,2]
[346031963,1734640246882,-5611.979551,0.0002488,3]
[346031964,1734640246893,-273650.47701138,0.0002488,3]
[346031965,1734640246904,-416.07025697,0.0002488,3]
[346031966,1734640246916,-9580.0,0.0002488,3]
[346031967,1734640246927,-8317.18971142,0.0002488,3]
[346031968,1734640247644,-200.0,0.000239,8]
[346031969,1734640247653,-635.21109024,0.0002488,3]
[346031970,1734640247664,-22362.42702271,0.0002488,3]
[346031971,1734640247676,-10615.2438991,0.0002488,3]
[346031972,1734640247690,-51.33275709,0.0002488,3]
[346031973,1734640247700,-332.83053288,0.0002488,3]
[346031974,1734640247711,-378.8694,0.0002488,3]
[346031975,1734640247722,-302.38002,0.0002488,3]
[346031976,1734640247734,-24.84642005,0.0002488,3]
[346031977,1734640247743,-430.37807416,0.0002488,2]
[346031979,1734640768370,154.29,0.00010137,2]
[346031998,1734641432117,-578.62,0.0002085,2]
[346031999,1734641432127,-573.66846894,0.00021164,2]
[346032000,1734641432137,-182.98546097,0.00021164,2]
[346032001,1734641432230,-317.01453903,0.00021164,2]
[346032002,1734641432240,-91.33011262,0.00022231,2]
[346032003,1734641432283,-812.07979701,0.00022231,2]
[346032004,1734641432293,-150.0,0.00022488,4]
[346032005,1734641432302,-150.0,0.00022488,4]
[346032006,1734641432312,-150.0,0.00022488,4]
[346032007,1734641432321,-150.0,0.00022488,4]
[346032008,1734641432330,-159.33,0.00022688,2]
[346032009,1734641432341,-1000.0,0.0002281,2]
[346032010,1734641432350,-300.0,0.00022812,2]
[346032011,1734641432359,-23900.0,0.00022813,2]
[346032012,1734641432368,-250.0,0.00022825,2]
[346032013,1734641432378,-250.0,0.00022917,2]
[346032014,1734641432387,-150.0,0.00022943,2]
[346032015,1734641432396,-218.01,0.00022944,2]
[346032016,1734641432406,-200.0,0.00023,2]
[346032017,1734641432415,-155.51,0.00023024,30]
[346032018,1734641432425,-150.0,0.00023068,2]
[346032019,1734641432434,-239.87416,0.00023088,7]
[346032020,1734641432443,-578.62,0.00023114,2]
[346032021,1734641432453,-200.0,0.00023163,2]
[346032022,1734641432462,-250.0,0.00023212,2]
[346032023,1734641432474,-878.84,0.00023263,2]
[346032024,1734641432484,-239.87416,0.00023288,7]
[346032025,1734641432494,-150.0,0.00023321,4]
[346032026,1734641432504,-556.01,0.0002335,2]
[346032027,1734641432514,-239.87416,0.00023488,7]
[346032028,1734641432523,-156.11,0.00023524,2]
[346032029,1734641432533,-239.87416,0.00023688,7]
[346032030,1734641432542,-462.597,0.0002375,2]
[346032031,1734641432553,-273.9,0.00023791,2]
[346032032,1734641432563,-1300.041,0.00023791,5]
[346032034,1734641432573,-310.7621,0.00023899,2]
[346032036,1734641432582,-218.9015,0.00023899,2]
[346032037,1734641432591,-3670.94580481,0.00023899,2]
[346032038,1734641432601,-824.9443,0.000239,2]
[346032039,1734641432610,-293.8543,0.000239,2]
[346032040,1734641432619,-265.8709,0.000239,2]
[346032041,1734641432628,-1483.6094,0.000239,2]
[346032042,1734641432638,-509.78329221,0.00023973,2]
[346032043,1734641432647,-533.93,0.00023999,4]
[346032044,1734641432656,-500.0,0.00023999,4]
[346032045,1734641432665,-500.0,0.00023999,4]
[346032046,1734641432674,-399.54676149,0.00023999,4]
[346032047,1734641432684,-500.0,0.00023999,4]
[346032048,1734641432693,-500.0,0.00023999,4]
[346032049,1734641432702,-500.0,0.00023999,4]
[346032050,1734641432711,-500.0,0.00023999,4]
[346032051,1734641432722,-500.0,0.00023999,4]
[346032052,1734641432731,-500.0,0.00023999,4]
[346032053,1734641432743,-500.0,0.00023999,4]
[346032054,1734641432752,-556.51574179,0.00023999,4]
[346032055,1734641432762,-500.0,0.00023999,4]
[346032056,1734641432771,-409.87605404,0.00023999,4]
[346032057,1734641432784,-90.12394596,0.00023999,4]
[346032058,1734641432793,-500.0,0.00023999,4]
[346032059,1734641432802,-500.0,0.00023999,4]
[346032060,1734641432811,-500.0,0.00023999,4]
[346032061,1734641432821,-500.0,0.00023999,4]
[346032062,1734641432831,-500.0,0.00023999,4]
[346032063,1734641432839,-500.0,0.00023999,4]
[346032064,1734641432848,-500.0,0.00023999,4]
[346032065,1734641432858,-521.45842248,0.00023999,4]
[346032066,1734641432867,-500.0,0.00023999,4]
[346032067,1734641432876,-500.0,0.00023999,4]
[346032068,1734641432885,-500.0,0.00023999,4]
[346032069,1734641432894,-500.0,0.00023999,4]
[346032070,1734641432903,-500.0,0.00023999,4]
[346032071,1734641432912,-500.0,0.00023999,4]
[346032072,1734641432921,-500.0,0.00023999,4]
[346032073,1734641432930,-507.11295745,0.00023999,4]
[346032074,1734641432939,-323.29440491,0.00023999,4]
[346032075,1734641432948,-500.0,0.00023999,4]
[346032076,1734641432957,-500.0,0.00023999,4]
[346032077,1734641432969,-227.52016104,0.00023999,4]
[346032078,1734641432985,-79.48098561,0.00023999,4]
[346032079,1734641432994,-500.0,0.00023999,4]
[346032080,1734641433003,-500.0,0.00023999,4]
[346032081,1734641433012,-1.31136007,0.00023999,4]
[346032082,1734641433028,-498.68863993,0.00023999,4]
[346032083,1734641433038,-500.0,0.00023999,4]
[346032084,1734641433048,-30.10136007,0.00023999,4]
[346032085,1734641433060,-290.54130537,0.00023999,4]
[346032086,1734641433076,-179.35733456,0.00023999,4]
[346032087,1734641433086,-500.0,0.00023999,4]
[346032088,1734641433096,-500.0,0.00023999,4]
[346032089,1734641433106,-500.0,0.00023999,4]
[346032090,1734641433116,-500.0,0.00023999,4]
[346032091,1734641433126,-500.0,0.00023999,4]
[346032092,1734641433136,-500.0,0.00023999,4]
[346032093,1734641433145,-500.0,0.00023999,4]
[346032094,1734641433155,-500.0,0.00023999,4]
[346032095,1734641433166,-500.0,0.00023999,4]
[346032096,1734641433176,-500.0,0.00023999,4]
[346032097,1734641433185,-500.0,0.00023999,4]
[346032098,1734641433195,-500.0,0.00023999,4]
[346032099,1734641433204,-391.37848092,0.00023999,4]
[346032100,1734641433214,-500.0,0.00023999,4]
[346032101,1734641433229,-500.0,0.00023999,4]
[346032102,1734641433238,-500.0,0.00023999,4]
[346032103,1734641433248,-500.0,0.00023999,4]
[346032104,1734641433258,-500.0,0.00023999,4]
[346032105,1734641433268,-500.0,0.00023999,4]
[346032106,1734641433278,-500.0,0.00023999,4]
[346032107,1734641433287,-500.0,0.00023999,4]
[346032108,1734641433298,-500.0,0.00023999,4]
[346032109,1734641433308,-500.0,0.00023999,4]
[346032110,1734641433318,-500.0,0.00023999,4]
[346032111,1734641433328,-500.0,0.00023999,4]
[346032112,1734641433338,-500.0,0.00023999,4]
[346032113,1734641433348,-500.0,0.00023999,4]
[346032114,1734641433357,-463.20218765,0.00023999,4]
[346032115,1734641433371,-36.79781235,0.00023999,4]
[346032116,1734641433382,-500.0,0.00023999,4]
[346032117,1734641433392,-500.0,0.00023999,4]
[346032118,1734641433402,-500.0,0.00023999,4]
[346032119,1734641433413,-501.19500204,0.00023999,4]
[346032120,1734641433423,-500.0,0.00023999,4]
[346032121,1734641433434,-501.20000182,0.00023999,4]
[346032122,1734641433444,-500.0,0.00023999,4]
[346032123,1734641433454,-301.92556596,0.00023999,4]
[346032124,1734641433464,-500.0,0.00023999,4]
[346032125,1734641433481,-570.56,0.00023999,4]
[346032126,1734641433491,-506.76465119,0.00023999,4]
[346032127,1734641433501,-70.17583183,0.00023999,4]
[346032128,1734641433514,-429.82416817,0.00023999,4]
[346032129,1734641433523,-500.0,0.00023999,4]
[346032130,1734641433533,-500.0,0.00023999,4]
[346032131,1734641433543,-500.0,0.00023999,4]
[346032132,1734641433553,-500.0,0.00023999,4]
[346032133,1734641433563,-500.0,0.00023999,4]
[346032134,1734641433574,-500.0,0.00023999,4]
[346032135,1734641433583,-500.0,0.00023999,4]
[346032136,1734641433593,-500.0,0.00023999,4]
[346032137,1734641433602,-500.0,0.00023999,4]
[346032138,1734641433613,-500.68430185,0.00023999,4]
[346032139,1734641433624,-500.0,0.00023999,4]
[346032140,1734641433634,-343.32610384,0.00023999,4]
[346032141,1734641433644,-500.0,0.00023999,4]
[346032142,1734641433653,-500.0,0.00023999,4]
[346032143,1734641433665,-500.0,0.00023999,4]
[346032144,1734641433675,-500.0,0.00023999,4]
[346032145,1734641433685,-500.0,0.00023999,4]
[346032146,1734641433695,-498.48271405,0.00023999,4]
[346032147,1734641433705,-500.0,0.00023999,4]
[346032148,1734641433715,-500.0,0.00023999,4]
[346032149,1734641433730,-619.40008384,0.00023999,4]
[346032150,1734641433744,-500.0,0.00023999,4]
[346032151,1734641433754,-500.0,0.00023999,4]
[346032152,1734641433764,-500.0,0.00023999,4]
[346032153,1734641433775,-500.0,0.00023999,4]
[346032154,1734641433785,-500.0,0.00023999,4]
[346032155,1734641433794,-500.0,0.00023999,4]
[346032156,1734641433804,-500.0,0.00023999,4]
[346032157,1734641433814,-500.0,0.00023999,4]
[346032158,1734641433823,-500.0,0.00023999,4]
[346032159,1734641433833,-500.0,0.00023999,4]
[346032160,1734641433843,-500.0,0.00023999,4]
[346032161,1734641433853,-345.36347225,0.00023999,4]
[346032162,1734641433863,-500.0,0.00023999,4]
[346032163,1734641433874,-500.0,0.00023999,4]
[346032164,1734641433883,-235.14705725,0.00023999,4]
[346032165,1734641433893,-500.0,0.00023999,7]
[346032166,1734641433903,-500.0,0.00023999,4]
[346032167,1734641433913,-500.0,0.00023999,4]
[346032168,1734641433923,-500.0,0.00023999,4]
[346032169,1734641433932,-500.0,0.00023999,4]
[346032170,1734641433943,-500.0,0.00023999,4]
[346032171,1734641433952,-500.0,0.00023999,4]
[346032172,1734641433962,-500.0,0.00023999,4]
[346032173,1734641433975,-500.0,0.00023999,4]
[346032174,1734641433985,-500.0,0.00023999,4]
[346032175,1734641433995,-500.0,0.00023999,4]
[346032176,1734641434005,-500.0,0.00023999,4]
[346032177,1734641434015,-500.0,0.00023999,4]
[346032178,1734641434026,-500.0,0.00023999,4]
[346032179,1734641434036,-560.39,0.00023999,4]
[346032180,1734641434046,-500.0,0.00023999,4]
[346032181,1734641434056,-500.0,0.00023999,4]
[346032182,1734641434066,-500.0,0.00023999,4]
[346032183,1734641434076,-500.0,0.00023999,4]
[346032184,1734641434085,-500.0,0.00023999,4]
[346032185,1734641434094,-500.0,0.00023999,4]
[346032186,1734641434104,-500.0,0.00023999,4]
[346032187,1734641434113,-500.0,0.00023999,4]
[346032188,1734641434123,-500.0,0.00023999,4]
[346032189,1734641434132,-500.0,0.00023999,4]
[346032190,1734641434142,-500.0,0.00023999,4]
[346032191,1734641434151,-367.58790918,0.00023999,4]
[346032192,1734641434161,-500.0,0.00023999,4]
[346032193,1734641434172,-500.0,0.00023999,4]
[346032194,1734641434181,-381.06929681,0.00023999,4]
[346032195,1734641434191,-500.0,0.00023999,4]
[346032196,1734641434201,-188.48,0.00023999,4]
[346032197,1734641434210,-500.0,0.00023999,4]
[346032198,1734641434223,-383.54915803,0.00023999,4]
[346032199,1734641434232,-500.0,0.00023999,4]
[346032200,1734641434242,-500.0,0.00023999,4]
[346032201,1734641434251,-500.0,0.00023999,4]
[346032202,1734641434261,-1000.0,0.00023999,5]
[346032203,1734641434270,-500.0,0.00023999,4]
[346032204,1734641434280,-500.0,0.00023999,4]
[346032205,1734641434289,-500.0,0.00023999,4]
[346032206,1734641434298,-500.0,0.00023999,4]
[346032207,1734641434307,-500.0,0.00023999,4]
[346032208,1734641434317,-500.0,0.00023999,4]
[346032209,1734641434326,-500.0,0.00023999,4]
[346032210,1734641434335,-500.0,0.00023999,4]
[346032211,1734641434344,-500.0,0.00023999,4]
[346032212,1734641434354,-500.0,0.00023999,4]
[346032213,1734641434363,-500.0,0.00023999,2]
[346032214,1734641434372,-500.0,0.00023999,4]
[346032215,1734641434382,-500.0,0.00023999,4]
[346032216,1734641434392,-500.0,0.00023999,4]
[346032217,1734641434402,-500.0,0.00023999,4]
[346032218,1734641434411,-500.0,0.00023999,4]
[346032219,1734641434421,-500.0,0.00023999,4]
[346032220,1734641434430,-500.0,0.00023999,4]
[346032221,1734641434439,-500.0,0.00023999,4]
[346032222,1734641434448,-500.0,0.00023999,4]
[346032223,1734641434458,-535.20302439,0.00023999,4]
[346032224,1734641434468,-500.0,0.00023999,4]
[346032225,1734641434478,-500.0,0.00023999,4]
[346032226,1734641434488,-500.0,0.00023999,4]
[346032227,1734641434498,-500.0,0.00023999,4]
[346032228,1734641434507,-500.0,0.00023999,4]
[346032229,1734641434516,-500.0,0.00023999,4]
[346032230,1734641434526,-500.0,0.00023999,4]
[346032231,1734641434536,-500.0,0.00023999,4]
[346032232,1734641434546,-500.0,0.00023999,4]
[346032233,1734641434556,-500.0,0.00023999,4]
[346032234,1734641434565,-500.0,0.00023999,4]
[346032235,1734641434726,-500.0,0.00023999,4]
[346032236,1734641434738,-515.37170289,0.00023999,4]
[346032237,1734641434750,-500.0,0.00023999,4]
[346032238,1734641434759,-500.0,0.00023999,4]
[346032239,1734641434768,-500.0,0.00023999,4]
[346032240,1734641434778,-500.0,0.00023999,4]
[346032241,1734641434787,-500.0,0.00023999,4]
[346032242,1734641434796,-500.0,0.00023999,4]
[346032243,1734641434805,-500.0,0.00023999,4]
[346032244,1734641434814,-500.0,0.00023999,4]
[346032245,1734641434823,-500.0,0.00023999,4]
[346032246,1734641434833,-500.0,0.00023999,4]
[346032247,1734641434842,-500.0,0.00023999,4]
[346032248,1734641434852,-500.0,0.00023999,4]
[346032249,1734641434861,-500.0,0.00023999,4]
[346032250,1734641434870,-500.0,0.00023999,4]
[346032251,1734641434879,-500.0,0.00023999,4]
[346032252,1734641434889,-500.0,0.00023999,4]
[346032253,1734641434898,-500.0,0.00023999,4]
[346032254,1734641434907,-500.0,0.00023999,4]
[346032255,1734641434916,-500.0,0.00023999,4]
[346032256,1734641434925,-500.0,0.00023999,4]
[346032257,1734641434934,-290.04000001,0.00023999,4]
[346032258,1734641434943,-500.0,0.00023999,4]
[346032259,1734641434953,-500.0,0.00023999,4]
[346032260,1734641434962,-500.0,0.00023999,4]
[346032261,1734641434974,-3670.94580475,0.0002401,2]
[346032262,1734641434984,-239.87416,0.00024088,7]
[346032263,1734641434994,-3670.94580475,0.00024121,2]
[346032264,1734641435003,-150.0,0.00024153,4]
[346032265,1734641435012,-150.0,0.00024192,2]
[346032266,1734641435021,-364.77,0.00024192,2]
[346032267,1734641435031,-150.0,0.00024192,2]
[346032268,1734641435040,-150.0,0.00024192,2]
[346032269,1734641435049,-150.0,0.00024192,2]